Workbook

Sheet 2月份
A1: 陆 丰 市 2024 年 2 月 财 政 预 算 支 出 完 成 情 况 表
A2: 2024-02-29 | O2: 单位：万元
B3: 年 初 | C3: 年度预算计划 | F3: 累计 | G3: 占年 | H3: 上年 | I3: 比上年 | J3: 比上年 | K3: 本月 | L3: 上年 | M3: 比上年 | N3: 比上年
A4: 支 出 项 目 | B4: 预 算 | F4: 完成 | G4: 预算 | H4: 同期 | I4: 同期增 | J4: 同期增 | K4: 完成 | L4: 同月 | M4: 同月增 | N4: 同月增 | O4: 备 注
B5: 数 | C5: 上年结转 | D5: 上级补助 | E5: 本级安排 | F5: 数 | G5: % | H5: 完成 | I5: 减额 | J5: (减)% | K5: 数 | L5: 完成 | M5: 减额 | N5: (减)%
A6: 201、一般公共服务支出 | E6: 69,094 | F6: 6,245 | G6: =F6/B6*100 ->  | H6: 15,358 | I6: =F6-H6 -> -9,113 | J6: =I6/H6*100 -> -59.3 | K6: 1,599 | L6: 4,365 | M6: =K6-L6 -> -2,766 | N6: =M6/L6*100 -> -63.4
A7: 203、国防支出 | F7: 0 | I7: 0 | K7: 0 | M7: 0
A8: 204、公共安全支出 | E8: 57,703 | F8: 9,292 | H8: 5,205 | I8: 4,087 | J8: 78.5 | K8: 1,001 | L8: 2,751 | M8: -1,750 | N8: -63.6
A9: 205、教育支出 | E9: 223,608 | F9: 26,703 | H9: 37,661 | I9: -10,958 | J9: -29.1 | K9: 12,937 | L9: 14,385 | M9: -1,448 | N9: -10.1
A10: 206、科学技术支出 | E10: 1,988 | F10: 265 | H10: 269 | I10: -4 | J10: -1.5 | K10: 222 | L10: 266 | M10: -44 | N10: -16.5
A11: 207、文化体育与传媒支出 | E11: 14,845 | F11: 935 | H11: 773 | I11: 162 | J11: 21.0 | K11: 391 | L11: 565 | M11: -174 | N11: -30.8
A12: 208、社会保障和就业支出 | E12: 182,612 | F12: 58,398 | H12: 53,614 | I12: 4,784 | J12: 8.9 | K12: 7,633 | L12: 4,526 | M12: 3,107 | N12: 68.6
A13: 210、卫生健康支出 | E13: 149,005 | F13: 78,547 | H13: 82,057 | I13: -3,510 | J13: -4.3 | K13: 3,074 | L13: 4,584 | M13: -1,510 | N13: -32.9
A14: 211、节能环保支出 | E14: 6,528 | F14: 218 | H14: 1,061 | I14: -843 | J14: -79.5 | K14: 212 | L14: 525 | M14: -313 | N14: -59.6
A15: 212、城乡社区支出 | E15: 31,384 | F15: 3,781 | H15: 2,971 | I15: 810 | J15: 27.3 | K15: 2,487 | L15: 788 | M15: 1,699 | N15: 215.6
A16: 213、农林水支出 | E16: 67,769 | F16: 9,550 | H16: 13,214 | I16: -3,664 | J16: -27.7 | K16: 5,244 | L16: 4,282 | M16: 962 | N16: 22.5
A17: 214、交通运输支出 | E17: 40,607 | F17: 2,304 | H17: 1,243 | I17: 1,061 | J17: 85.4 | K17: 319 | L17: 623 | M17: -304 | N17: -48.8
A18: 215、资源勘探工业信息等支出 | E18: 1,129 | F18: 68 | H18: 130 | I18: -62 | J18: -47.7 | K18: 39 | L18: 28 | M18: 11 | N18: 39.3
A19: 216、商业服务业等支出 | E19: 1,781 | F19: 155 | H19: 168 | I19: -13 | J19: -7.7 | K19: 60 | L19: 62 | M19: -2 | N19: -3.2
A20: 217、金融支出 | F20: 1 | I20: 1 | K20: 1 | M20: 1
A21: 220、自然资源海洋气象等支出 | E21: 5,995 | F21: 497 | H21: 515 | I21: -18 | J21: =I21/H21*100 -> -3.5 | K21: 17 | L21: 474 | M21: -457 | N21: =M21/L21*100 -> -96.4
A22: 221、住房保障支出 | E22: 23,733 | F22: 775 | H22: 2,466 | I22: -1,691 | J22: -68.6 | K22: 182 | L22: 965 | M22: -783 | N22: -81.1
A23: 222、粮油物资储备支出 | E23: 3,200 | I23: 0 | K23: 0 | M23: 0
A24: 224、灾害防治及应急管理支出 | E24: 2,916 | F24: 297 | H24: 662 | I24: -365 | J24: -55.1 | K24: 126 | L24: 263 | M24: -137 | N24: -52.1
A25: 232、债务付息支出 | E25: 3,900 | I25: 0 | K25: 0 | M25: 0
A26: 233、债务发行费用支出 | E26: 100 | I26: 0 | K26: 0 | M26: 0
A27: 227、预备费 | E27: 2,000 | I27: 0 | K27: 0 | M27: 0
A28: 229、其他支出 | E28: 39,284 | F28: 61 | H28: 189 | I28: -128 | J28: =I28/H28*100 -> -67.7 | K28: 45 | L28: 3 | M28: 42 | N28: =M28/L28*100 -> 1400.0
A29: 一、一般公共预算支出合计 | B29: =SUM(B6:B28) -> 0 | C29: 0 | D29: 0 | E29: 929,181 | F29: 198,092 | H29: 217,556 | I29: -19,464 | J29: -8.9 | K29: =SUM(K6:K28) -> 35,589 | L29: =SUM(L6:L28) -> 39,455 | M29: -3,866 | N29: -9.8
A30: 二、政府性基金预算支出 | D30: 303,305.00 | E30: 110,556 | F30: 16,643 | H30: 72,690 | I30: -56,047 | J30: -77.1 | K30: 11,420 | L30: 9,822 | M30: 1,598 | N30: 16.3
A31: 三、国有资本经营支出 | E31: 1,500 | F31: 1 | H31: 446 | I31: -445 | J31: -99.8 | K31: 1 | L31: 207 | M31: -206 | N31: -99.5
A32: 四、债务还本支出 | E32: 7,600 | F32: 0 | I32: 0
A33: 支出合计 | B33: =B29+B30+B31+B32 -> 0 | C33: =C29+C30+C31 -> 0 | D33: =D29+D30+D31 -> 303,305 | E33: =E29+E30+E31 -> 1,041,237 | F33: =F29+F30+F31+F32 -> 214,736 | H33: 290,692 | I33: -75,956 | J33: =I33/H33*100 -> -26.1 | K33: 47,010 | L33: 49,484 | M33: =K33-L33 -> -2,474 | N33: =M33/L33*100 -> -5.0
